fUSD/lending_fUSD_20240115
["ID","MTS","AMOUNT","RATE_DAILY","PERIOD"]
[311639109,1705276967595,371.5,0.00020942,2]
[311639110,1705277028330,1645.18680225,0.00021982,2]
[311639111,1705277034665,418.31655925,0.00021982,2]
[311639112,1705277054491,250.0,0.00021999,2]
[311639113,1705277092782,150.0,0.00021999,2]
[311639114,1705277124455,203.48421875,0.00021889,15]
[311639115,1705277217523,200.0,0.00022088,2]
[311639116,1705277242566,5189.6,0.00022091,2]
[311639117,1705277242665,219.95090379,0.00021889,2]
[311639118,1705277247618,1890.29828009,0.00021889,2]
[311639119,1705277248100,-278.87214514,0.00022235,2]
[311639120,1705277248121,-199.07372093,0.00022236,2]
[311639121,1705277248145,-173.79,0.0002224,2]
[311639122,1705277248176,-416.27,0.00022389,2]
[311639123,1705277248201,-507.58070133,0.000225,8]
[311639124,1705277354001,10666.44,0.00021956,2]
[311639125,1705277368871,738.69,0.00021949,2]
[311639151,1705277431896,-697.37000914,0.00022496,2]
[311639154,1705277431906,-763.2792291,0.00022497,2]
[311639156,1705277431915,-763.2792291,0.00022497,2]
[311639158,1705277431925,-1788.37312735,0.00022499,2]
[311639160,1705277431935,-592.41929867,0.000225,8]
[311639162,1705277431945,-150.0,0.00022547,2]
[311639163,1705277431954,-2200.0,0.000226,8]
[311639165,1705277431963,-1000.0,0.00022647,5]
[311639167,1705277431972,-1537.27910664,0.000227,8]
[311639169,1705277431984,-431.94433147,0.000227,8]
[311639171,1705277431997,-1012.92672215,0.000227,8]
[311639174,1705277432020,-317.84983974,0.000227,8]
[311639176,1705277432030,-397.0,0.0002277,2]
[311639178,1705277432039,-324.42728818,0.00022798,2]
[311639180,1705277432049,-551.37931886,0.00022798,2]
[311639182,1705277432058,-156.22454558,0.00022799,2]
[311639183,1705277432067,-92318.5992,0.000228,2]
[311639184,1705277432077,-160.0,0.000228,2]
[311639185,1705277432086,-4500.0,0.000228,8]
[311639186,1705277432096,-156.95,0.00022825,2]
[311639187,1705277432106,-261.31,0.0002286,2]
[311639188,1705277432115,-2500.0,0.00022898,2]
[311639189,1705277432125,-288.66708513,0.00022898,2]
[311639190,1705277432136,-1576.0,0.00022898,2]
[311639191,1705277432147,-1611.38511704,0.00022898,2]
[311639192,1705277432157,-327.45274585,0.00022898,2]
[311639193,1705277432166,-214.14018748,0.00022899,2]
[311639194,1705277432176,-9494.3128,0.000229,2]
[311639195,1705277432185,-19724.81218732,0.000229,2]
[311639196,1705277432198,-4289.41508,0.000229,2]
[311639197,1705277432210,-10472.403,0.000229,2]
[311639198,1705277432238,-491.67029575,0.000229,2]
[311639199,1705277432250,-8350.29145754,0.000229,2]
[311639200,1705277433510,-29120.14337939,0.000229,2]
[311639201,1705277433520,-296.03167275,0.000229,2]
[311639202,1705277433529,-11125.51050256,0.000229,2]
[311639203,1705277433563,-2766.65626921,0.000229,2]
[311639204,1705277433577,-519.6705,0.000229,2]
[311639205,1705277433589,-6726.40905668,0.000229,2]
[311639206,1705277433599,-697.99,0.000229,2]
[311639207,1705277433609,-271.14,0.000229,2]
[311639208,1705277433620,-214.14018748,0.000229,2]
[311639209,1705277433631,-228.97878998,0.000229,2]
[311639210,1705277433640,-854.5082095,0.000229,2]
[311639211,1705277433649,-903.35971036,0.000229,2]
[311639212,1705277433659,-5600.0,0.000229,8]
[311639213,1705277433668,-173.79,0.00022981,2]
[311639214,1705277433678,-734.36,0.00022986,2]
[311639215,1705277433687,-198.51848579,0.00022989,2]
[311639216,1705277433697,-1066.56914214,0.00022997,2]
[311639217,1705277433706,-157.11544536,0.00022998,2]
[311639218,1705277433715,-155.0,0.00022998,2]
[311639219,1705277433726,-274.69213419,0.00022998,2]
[311639220,1705277433736,-161210.99920904,0.00022998,2]
[311639221,1705277433745,-181.818,0.00022998,2]
[311639222,1705277433755,-499.99,0.00022998,2]
[311639223,1705277433765,-735.93,0.00022998,2]
[311639224,1705277433776,-155.0,0.00022998,2]
[311639225,1705277433785,-249.84044134,0.00022998,2]
[311639226,1705277433797,-504924.79064027,0.00022999,2]
[311639227,1705277433807,-300.0,0.00022999,2]
[311639228,1705277433817,-300.0,0.00022999,2]
[311639229,1705277433826,-160.0,0.00023,2]
[311639230,1705277433836,-160.0,0.00023,2]
[311639231,1705277433847,-40437.67113844,0.00023,2]
[311639232,1705277433859,-528.87484806,0.00023,2]
[311639233,1705277433870,-27566.10393694,0.00023,2]
[311639234,1705277433908,-1228.72334286,0.00023,2]
[311639235,1705277433919,-415.58527657,0.00023,2]
[311639236,1705277433931,-20067.5708785,0.00023,2]
[311639237,1705277433983,-391.73008624,0.00023,2]
[311639264,1705277437905,-645.65371976,0.000227,2]
[311639266,1705277437917,-361.53594991,0.000227,2]
[311639269,1705277437928,-6862.7523107,0.000227,2]
[311639282,1705277438023,-6308.8425,0.000227,2]
[311639283,1705277438035,-690.37737459,0.000227,2]
[311639284,1705277438049,-2954.50588367,0.000227,2]
[311639285,1705277438147,-505.15802212,0.000227,2]
[311639376,1705277439384,-474.27476,0.000227,2]
[311639378,1705277439399,-951.26132272,0.000227,2]
[311639381,1705277439411,-455.23866117,0.000227,2]
[311639383,1705277439423,-343.81017987,0.000227,2]
[311639385,1705277439435,-24499.93971274,0.000227,2]
[311639387,1705277439448,-6474.48993734,0.000227,2]
[311639390,1705277439462,-21826.49606699,0.000227,2]
[311639392,1705277439474,-4225.70069842,0.000227,2]
[311639394,1705277439484,-46772.88563846,0.00023,2]
[311639396,1705277439497,-29589.85563386,0.00023,2]
[311639401,1705277439533,-2545294.71727126,0.00023,2]
[311639403,1705277439544,-189431.05876733,0.00023,2]
[311639405,1705277439553,-2160982.18506204,0.00023,2]
[311639407,1705277439564,-164.93,0.00023,2]
[311639409,1705277439574,-159.79,0.00023041,2]
[311639411,1705277439583,-371.5,0.00023206,2]
[311639413,1705277439593,-159.79,0.00023281,2]
[311639415,1705277439603,-500.0,0.00023288,2]
[311639417,1705277439613,-500.0,0.00023288,2]
[311639419,1705277439623,-500.0,0.00023288,2]
[311639421,1705277439633,-500.0,0.00023288,2]
[311639423,1705277439646,-500.0,0.00023288,2]
[311639425,1705277439656,-500.0,0.00023288,2]
[311639427,1705277439665,-500.0,0.00023288,2]
[311639429,1705277439675,-500.0,0.00023288,2]
[311639431,1705277439685,-520.9398699,0.00023288,2]
[311639433,1705277439694,-500.0,0.00023288,2]
[311639435,1705277439703,-500.0,0.00023288,2]
[311639437,1705277439712,-500.0,0.00023288,2]
[311639439,1705277439722,-500.0,0.00023288,2]
[311639441,1705277439732,-500.0,0.00023288,2]
[311639443,1705277439742,-500.0,0.00023288,2]
[311639445,1705277439752,-500.0,0.00023288,2]
[311639447,1705277439761,-500.0,0.00023288,2]
[311639449,1705277439771,-1400.09887374,0.00023288,2]
[311639452,1705277439781,-1400.09887374,0.00023288,2]
[311639454,1705277439790,-1400.09887374,0.00023288,2]
[311639456,1705277439799,-1400.09887374,0.00023288,2]
[311639458,1705277439809,-1400.09887374,0.00023288,2]
[311639460,1705277439819,-1400.09887374,0.00023288,2]
[311639462,1705277439829,-1400.09887374,0.00023288,2]
[311639464,1705277439839,-1400.09887374,0.00023288,2]
[311639466,1705277439849,-1400.09887374,0.00023288,2]
[311639468,1705277439858,-1400.09887374,0.00023288,2]
[311639470,1705277439868,-1400.09887374,0.00023288,2]
[311639472,1705277439878,-1400.09887374,0.00023288,2]
[311639474,1705277439890,-1400.09887374,0.00023288,2]
[311639476,1705277439900,-1400.09887374,0.00023288,2]
[311639478,1705277439909,-1400.09887374,0.00023288,2]
[311639480,1705277439919,-1400.09887374,0.00023288,2]
[311639482,1705277439928,-1400.09887374,0.00023288,2]
[311639484,1705277439938,-1400.09887374,0.00023288,2]
[311639486,1705277439947,-1400.09887374,0.00023288,2]
[311639488,1705277439957,-1400.09887374,0.00023288,2]
[311639490,1705277439967,-1400.09887374,0.00023288,2]
[311639492,1705277439976,-1296.58889016,0.00023288,2]
[311639494,1705277439985,-1296.58889016,0.00023288,2]
[311639496,1705277439995,-1296.58889016,0.00023288,2]
[311639497,1705277440004,-1296.58889016,0.00023288,2]
[311639498,1705277440014,-1555.90666817,0.00023288,2]
[311639499,1705277440023,-416.27,0.00023367,2]
[311639500,1705277440033,-159.79,0.00023521,2]
[311639501,1705277440043,-21138.24632843,0.00023599,2]
[311639502,1705277440052,-173.79,0.00023722,2]
[311639503,1705277440062,-159.79,0.00023762,2]
[311639504,1705277440071,-172.41,0.00023994,2]
[311639505,1705277440081,-430.99724455,0.00024,2]
[311639507,1705277440091,-200.89664823,0.00024,2]
[311639509,1705277440100,-159.79,0.00024002,2]
[311639511,1705277440110,-1611.38511704,0.00024032,2]
[311639513,1705277440119,-159.79,0.00024242,2]
[311639515,1705277440128,-168.21,0.00024297,2]
[311639517,1705277440139,-167.41,0.00024297,2]
[311639519,1705277440149,-21138.24632843,0.00024297,2]
[311639521,1705277440158,-416.27,0.00024346,2]
[311639523,1705277440167,-173.79,0.00024464,2]
[311639525,1705277440177,-500.0,0.00024538,2]
[311639527,1705277440186,-3000.0,0.00024658,2]
[311639529,1705277440196,-250.0,0.00024658,2]
[311639531,1705277440205,-738.69,0.00024693,2]
[311639533,1705277440214,-153.06,0.00024747,2]
[311639535,1705277440223,-1303.577,0.00024838,2]
[311639537,1705277440232,-19688.0,0.00024838,2]
[311639539,1705277440243,-41885.0,0.00024838,2]
[311639541,1705277440252,-4170.0,0.00024838,2]
[311639543,1705277440262,-2903.0,0.00024838,2]
[311639545,1705277440271,-2271.0,0.00024838,2]
[311639547,1705277440282,-1029.0,0.00024838,2]
[311639549,1705277440291,-151.86,0.00024838,2]
[311639551,1705277440301,-200.1906815,0.00024875,2]
[311639554,1705277440311,-1354.0,0.00024899,2]
[311639556,1705277440320,-2218.428,0.00024899,2]
[311639558,1705277440330,-262.744,0.00024899,2]
[311639560,1705277440340,-2913.689,0.00024899,2]
[311639562,1705277440350,-1916.029,0.00024899,2]
[311639564,1705277440360,-944.0,0.00024899,2]
[311639566,1705277440370,-839.0,0.00024899,2]
[311639569,1705277440380,-1268.0,0.00024899,2]
[311639571,1705277440391,-425.0,0.00024899,2]
[311639574,1705277440401,-1931.0,0.00024899,2]
[311639577,1705277440411,-162.505,0.00024899,2]
[311639580,1705277440420,-370.927,0.00024899,2]
[311639583,1705277440430,-235.0,0.00024899,2]
[311639586,1705277440440,-884.0,0.00024899,2]
[311639589,1705277440449,-1100.0,0.000249,9]
[311639593,1705277440459,-21138.24632843,0.00024996,2]
[311639596,1705277440469,-167.23848345,0.00025,2]
[311639598,1705277440478,-1350.0,0.00025,3]
[311639601,1705277440487,-303.07385153,0.00025,2]
[311639602,1705277440497,-201.78427875,0.00025,2]
[311639604,1705277440506,-483.29560167,0.00025,2]
[311639607,1705277440517,-1583.00550367,0.00025,2]
[311639609,1705277440527,-1247.79685735,0.00025,2]
[311639611,1705277440539,-493.83198123,0.00025,2]
[311639613,1705277440549,-1070.01161759,0.00025,2]
[311639615,1705277440558,-279.71575153,0.00025012,3]
[311639617,1705277440568,-294.14328272,0.00025012,3]
[311639619,1705277440577,-261.21320533,0.00025012,3]
[311639621,1705277440587,-235.6235307,0.00025012,3]
[311639622,1705277440596,-161.12702475,0.00025012,3]
[311639625,1705277440606,-200.90925053,0.00025012,3]
[311639627,1705277440616,-450.0,0.0002502,3]
[311639629,1705277440625,-368.43701596,0.00025065,3]
[311639631,1705277440634,-329.28443575,0.00025092,3]
[311639633,1705277440646,-1000.0,0.00025092,3]
[311639635,1705277440655,-2751.66927041,0.00025092,3]
[311639637,1705277440664,-151.86,0.00025114,2]
[311639639,1705277440674,-214.51174631,0.00025119,3]
[311639641,1705277440682,-1611.38511704,0.00025166,2]
[311639643,1705277440691,-874.0,0.00025278,2]
[311639645,1705277440700,-416.27,0.00025324,2]
[311639647,1705277440710,-151.86,0.0002539,2]
[311639649,1705277440718,-371.5,0.0002547,2]
[311639651,1705277440728,-172.41,0.00025498,2]
[311639653,1705277440737,-151.86,0.00025666,2]
[311639655,1705277440746,-21138.24632843,0.00025694,2]
[311639657,1705277440756,-261.31,0.00025718,2]
[311639659,1705277440765,-153.06,0.00025873,2]
[311639661,1705277440774,-50169.0,0.000259,2]
[311639663,1705277440783,-4173.0,0.000259,2]
[311639665,1705277440793,-151.86,0.00025942,2]
[311639667,1705277440802,-150.0,0.00026079,2]
[311639669,1705277440811,-50000.0,0.00026214,2]
[311639671,1705277440819,-151.86,0.00026218,2]
[311639673,1705277440828,-1611.38511704,0.000263,3]
[311639675,1705277440838,-416.27,0.00026303,2]
[311639677,1705277440847,-21138.24632843,0.00026393,2]
[311639679,1705277440856,-854.50820949,0.00026468,2]
[311639681,1705277440865,-903.35971035,0.00026468,2]
[311639683,1705277440874,-151.86,0.00026494,2]
[311639685,1705277440883,-6940.54,0.00026575,2]
[311639687,1705277440895,-1111.07,0.00026575,2]
[311639689,1705277440903,-151.86,0.0002677,2]
[311639691,1705277440913,-5000.0,0.000269,2]
[311639693,1705277440922,-153.06,0.00027,2]
[311639695,1705277440931,-1400.0,0.00027,3]
[311639697,1705277440941,-416.34117686,0.00027,2]
[311639699,1705277440951,-957.0,0.00027,2]
[311639701,1705277440961,-1000.0,0.00027,2]
[311639703,1705277440970,-172.41,0.00027003,2]
[311639705,1705277440980,-151.86,0.00027046,2]
[311639707,1705277440989,-21138.24632843,0.00027091,2]
[311639709,1705277440999,-416.27,0.00027281,2]
[311639711,1705277441009,-6035.40303043,0.000273,2]
[311639713,1705277441018,-6035.40303043,0.000273,2]
[311639715,1705277441028,-6035.40303043,0.000273,2]
[311639717,1705277441040,-6035.40303043,0.000273,2]
[311639719,1705277441050,-6035.40303043,0.000273,2]
[311639721,1705277441059,-6035.40303043,0.000273,2]
[311639723,1705277441068,-6035.40303043,0.000273,2]
[311639725,1705277441078,-6035.40303043,0.000273,2]
[311639727,1705277441087,-6035.40303043,0.000273,2]
[311639729,1705277441096,-6035.40303043,0.000273,2]
[311639731,1705277441105,-6035.40303043,0.000273,2]
[311639733,1705277441114,-6035.40303043,0.000273,2]
[311639735,1705277441124,-155.879494,0.000273,7]
[311639737,1705277441133,-182.267775,0.000273,7]
[311639739,1705277441146,-182.267775,0.000273,7]
[311639741,1705277441156,-151.0,0.000273,7]
[311639743,1705277441166,-151.0,0.000273,7]
[311639745,1705277441176,-151.0,0.000273,7]
[311639747,1705277441186,-151.0,0.000273,7]
[311639750,1705277441196,-517.524431,0.000273,7]
[311639751,1705277441205,-517.524431,0.000273,7]
[311639754,1705277441214,-151.86,0.00027322,2]
[311639756,1705277441224,-155.0,0.00027397,2]
[311639758,1705277441233,-14046.36,0.00027397,2]
[311639760,1705277441243,-2500.0,0.00027397,4]
[311639762,1705277441252,-250.0,0.00027397,2]
[311639764,1705277441261,-750.0,0.000274,2]
[311639766,1705277441271,-5690.6930067,0.000274,2]
[311639768,1705277441280,-8000.0,0.000274,2]
[311639770,1705277441289,-1610.85,0.000274,2]
[311639772,1705277441298,-1610.85,0.000274,2]
[311639774,1705277441308,-1610.85,0.000274,2]
[311639776,1705277441317,-1610.85,0.000274,2]
[311639778,1705277441326,-1610.85,0.000274,2]
[311639780,1705277441336,-1610.85,0.000274,2]
[311639782,1705277441346,-1610.85,0.000274,2]
[311639784,1705277441355,-1610.85,0.000274,2]
[311639786,1705277441365,-1610.85,0.000274,2]
[311639788,1705277441374,-1610.85,0.000274,2]
[311639790,1705277441383,-1611.38511704,0.00027435,3]
[311639792,1705277441397,-738.69,0.00027436,2]
[311639794,1705277441407,-450.0,0.000275,3]
[311639796,1705277441417,-500.0,0.00027535,2]
[311639798,1705277441427,-200.0,0.00027535,2]
[311639800,1705277441436,-200.0,0.00027535,3]
[311639802,1705277441447,-200.0,0.00027535,3]
[311639804,1705277441457,-14046.36,0.00027556,2]
[311639806,1705277441466,-14046.36,0.00027714,2]
[311639808,1705277441476,-371.5,0.00027734,2]
[311639810,1705277441486,-21138.24632843,0.0002779,2]
[311639812,1705277441495,-11482.143,0.00027838,2]
[311639814,1705277441505,-1864.437,0.00027838,2]
[311639816,1705277441518,-2903.0,0.00027838,2]
[311639818,1705277441528,-2271.0,0.00027838,2]
[311639820,1705277441544,-1029.0,0.00027838,2]
[311639822,1705277441554,-14046.36,0.00027872,2]
[311639824,1705277441566,-687.85574589,0.00028,2]
[311639826,1705277441576,-22742.41168167,0.00028,2]
[311639828,1705277441585,-3000.0,0.00028,2]
[311639830,1705277441594,-202.15120204,0.00028,2]
[311639833,1705277441604,-454.84823364,0.00028,2]
[311639835,1705277441614,-3000.0,0.0002801,2]
[311639836,1705277441624,-3000.0,0.0002802,2]
[311639839,1705277441634,-3000.0,0.0002803,2]
[311639841,1705277441647,-14046.36,0.0002803,2]
[311639843,1705277441656,-3000.0,0.0002804,2]
[311639845,1705277441665,-3000.0,0.0002805,2]
[311639847,1705277441676,-3000.0,0.0002806,2]
[311639849,1705277441685,-3000.0,0.0002807,2]
[311639851,1705277441695,-300.0,0.00028079,2]
[311639853,1705277441704,-150.0,0.00028079,2]
[311639855,1705277441713,-3000.0,0.0002808,2]
[311639857,1705277441723,-3000.0,0.0002809,2]
[311639859,1705277441733,-3000.0,0.000281,2]
[311639861,1705277441743,-3000.0,0.0002811,2]
[311639863,1705277441752,-3000.0,0.0002812,2]
[311639865,1705277441762,-153.06,0.00028126,2]
[311639867,1705277441773,-3000.0,0.0002813,2]
[311639870,1705277441786,-3000.0,0.0002814,2]
[311639872,1705277441796,-3000.0,0.0002815,2]
[311639874,1705277441806,-3000.0,0.0002816,2]
[311639876,1705277441816,-3000.0,0.0002817,2]
[311639878,1705277441826,-3000.0,0.0002818,2]
[311639880,1705277441835,-14046.36,0.00028189,2]
[311639882,1705277441845,-3000.0,0.0002819,2]
[311639884,1705277441855,-3000.0,0.000282,2]
[311639886,1705277441864,-3000.0,0.0002821,2]
[311639888,1705277441874,-3000.0,0.0002822,2]
[311639890,1705277441884,-3000.0,0.0002823,2]
[311639892,1705277441895,-3000.0,0.0002824,2]
[311639894,1705277441905,-3456.729071,0.0002825,2]
[311639896,1705277441914,-296.03167195,0.0002826,2]
[311639898,1705277441923,-416.27,0.0002826,2]
[311639899,1705277441933,-2018.478868,0.000283,2]
[311639901,1705277441942,-14046.36,0.00028347,2]
[311639903,1705277441952,-21138.24632843,0.00028488,2]
[311639905,1705277441961,-200.0,0.000285,2]
[311639907,1705277441971,-14046.36,0.00028505,2]
[311639909,1705277441981,-172.41,0.00028507,2]
[311639911,1705277441991,-1611.38511704,0.00028569,4]
[311639913,1705277442001,-261.31,0.00028575,2]
[311639915,1705277442011,-1115.77421501,0.00028625,7]
[311639916,1705277442024,-463.26204504,0.00028629,2]
[311639917,1705277442034,-5831.19981115,0.00028663,6]
[311639918,1705277442043,-14046.36,0.00028664,2]
[311639919,1705277442051,-155.0,0.00028767,2]
[311639920,1705277442060,-6988.0,0.000288,2]
[311639921,1705277442070,-14046.36,0.00028822,2]
[311639922,1705277442079,-205.0,0.00028845,2]
[311639923,1705277442088,-1450.0,0.00029,3]
[311639924,1705277442098,-3547.86371988,0.00029,15]
[311639925,1705277442108,-21138.24632843,0.00029187,2]
[311639926,1705277442117,-416.27,0.00029238,2]
[311639927,1705277442126,-153.06,0.00029252,2]
[311639928,1705277442135,-2000.0,0.000293,2]
[311639930,1705277442147,-187.78095067,0.000295,3]
[311639932,1705277442157,-1611.38511704,0.00029703,4]
[311639934,1705277442167,-342.7619,0.000298,2]
[311639936,1705277442177,-175.36700291,0.000298,2]
[311639938,1705277442188,-1000.0,0.000298,2]
[311639940,1705277442198,-21138.24632843,0.00029885,2]
[311639942,1705277442208,-200.0,0.00029894,2]
[311639945,1705277442218,-800.0,0.00029895,5]
[311639947,1705277442228,-1100.0,0.000299,10]
[311639949,1705277442237,-1000.0,0.000299,2]
[311639951,1705277442247,-530.17841264,0.0002998,3]
[311639953,1705277442258,-417639.0932352,0.0002998,2]
[311639955,1705277442267,-151.0,0.0002998,7]
[311639957,1705277442278,-151.0,0.0002998,7]
[311639959,1705277442289,-151.0,0.0002998,7]
[311639961,1705277442299,-151.0,0.0002998,7]
[311639963,1705277442309,-166.793448,0.0002998,7]
[311639965,1705277442319,-166.793448,0.0002998,7]
[311639967,1705277442329,-151.0,0.0002998,7]
[311639969,1705277442339,-151.0,0.0002998,7]
[311639971,1705277442349,-151.0,0.0002998,7]
[311639973,1705277442358,-159.120713,0.0002998,7]
[311639974,1705277442367,-151.0,0.0002998,7]
[311639977,1705277442377,-151.0,0.0002998,7]
[311639979,1705277442392,-151.0,0.0002998,7]
[311639981,1705277442401,-153.767519,0.0002998,7]
[311639983,1705277442411,-151.0,0.0002998,7]
[311639985,1705277442420,-151.0,0.0002998,7]
[311639987,1705277442429,-151.0,0.0002998,7]
[311639989,1705277442438,-151.0,0.0002998,7]
[311639991,1705277442448,-281.224429,0.0002998,7]
[311639993,1705277442457,-151.0,0.0002998,7]
[311639995,1705277442467,-151.0,0.0002998,7]
[311639997,1705277442476,-151.0,0.0002998,7]
[311639999,1705277442486,-1349.92984,0.0002998,7]
[311640001,1705277442496,-1349.92984,0.0002998,7]
[311640003,1705277442505,-209.809226,0.0002998,7]
[311640005,1705277442515,-209.809226,0.0002998,7]
[311640007,1705277442525,-182.267775,0.0002998,7]
[311640009,1705277442534,-182.267775,0.0002998,7]
[311640010,1705277442544,-151.0,0.0002998,7]
[311640013,1705277442554,-151.0,0.0002998,7]
[311640015,1705277442563,-517.524431,0.0002998,7]
[311640016,1705277442572,-517.524431,0.0002998,7]
[311640019,1705277442582,-371.5,0.00029998,2]
[311640020,1705277442591,-390.13619953,0.00029999,2]
[311640023,1705277442603,-9629.9439869,0.0003,2]
[311640025,1705277442613,-100129.62882957,0.0003,4]
[311640027,1705277442623,-2500.0,0.0003,2]
[311640029,1705277442632,-6854.58505687,0.0003,4]
[311640075,1705277442961,-2550.6211898,0.0003,4]
[311640078,1705277442971,-582.05205839,0.0003,2]
[311640081,1705277442981,-678.07747155,0.0003,4]
[311640084,1705277442990,-19757.91663075,0.0003,4]
[311640086,1705277442999,-648.26024884,0.0003,4]
[311640089,1705277443008,-1572.87627363,0.0003,2]
[311640091,1705277443018,-690.91027543,0.0003,2]
[311640093,1705277443027,-904.74096856,0.0003,4]
[311640095,1705277443036,-28526.71723536,0.0003,4]
[311640097,1705277443045,-36005.75654642,0.0003,2]
[311640099,1705277443054,-3000.0,0.0003,2]
[311640101,1705277443063,-203.0,0.0003,2]
[311640103,1705277443073,-1000.0,0.0003,2]
[311640105,1705277443085,-157.49,0.0003,2]
[311640107,1705277443094,-157.49,0.0003,2]
[311640110,1705277443104,-157.49,0.0003,2]
[311640112,1705277443113,-275.63,0.0003,2]
[311640114,1705277443123,-275.63,0.0003,2]
[311640116,1705277443132,-275.63,0.0003,2]
[311640118,1705277443145,-275.63,0.0003,2]
[311640120,1705277443154,-275.63,0.0003,2]
[311640122,1705277443163,-275.63,0.0003,2]
[311640124,1705277443173,-275.63,0.0003,2]
[311640126,1705277443183,-275.63,0.0003,2]
[311640128,1705277443193,-275.63,0.0003,2]
[311640130,1705277443202,-275.63,0.0003,2]
[311640132,1705277443212,-275.63,0.0003,2]
[311640134,1705277443221,-275.63,0.0003,2]
[311640136,1705277443230,-150.0,0.00030015,2]
[311640138,1705277443239,-2000.0,0.00030033,4]
[311640140,1705277443249,-2500.0,0.00030033,2]
[311640142,1705277443258,-2078.55208734,0.00030033,2]
[311640144,1705277443268,-209.0,0.00030034,2]
[311640146,1705277443277,-250.0,0.00030036,2]
[311640148,1705277443286,-20000.0,0.00030036,2]
[311640150,1705277443296,-854.50820949,0.00030036,2]
[311640152,1705277443305,-903.35971035,0.00030036,2]
[311640154,1705277443314,-251.65794723,0.000301,4]
[311640156,1705277443323,-200.0,0.000301,2]
[311640158,1705277443332,-300.0,0.000301,2]
[311640160,1705277443341,-150.0,0.000301,2]
[311640162,1705277443350,-150.0,0.000301,2]
[311640164,1705277443360,-6988.43156388,0.000301,2]
[311640166,1705277443369,-747.3941,0.000301,2]
[311640168,1705277443378,-300.0,0.000301,2]
[311640170,1705277443387,-2505.04,0.00030126,10]
[311640172,1705277443402,-2087.53,0.00030126,10]
[311640174,1705277443412,-540.1441649,0.00030132,2]
[311640176,1705277443422,-2200.9128431,0.00030132,2]
[311640178,1705277443431,-300.0,0.00030133,2]
[311640180,1705277443441,-2078.55208734,0.00030133,2]
[311640182,1705277443451,-166.793448,0.00030134,7]
[311640184,1705277443460,-166.793448,0.00030134,7]
[311640186,1705277443470,-151.0,0.00030134,7]
[311640188,1705277443480,-151.0,0.00030134,7]
[311640190,1705277443489,-151.0,0.00030134,7]
[311640192,1705277443499,-151.0,0.00030134,7]
[311640194,1705277443509,-151.0,0.00030134,7]
[311640196,1705277443519,-151.0,0.00030134,7]
[311640198,1705277443529,-151.0,0.00030134,7]
[311640200,1705277443539,-1349.92984,0.00030134,7]
[311640202,1705277443550,-1349.92984,0.00030134,7]
[311640204,1705277443560,-209.809226,0.00030134,7]
[311640206,1705277443570,-209.809226,0.00030134,7]
[311640208,1705277443580,-182.267775,0.00030134,7]
[311640210,1705277443590,-182.267775,0.00030134,7]
[311640212,1705277443599,-151.0,0.00030134,7]
[311640214,1705277443609,-151.0,0.00030134,7]
[311640216,1705277443619,-517.524431,0.00030134,7]
[311640218,1705277443629,-517.524431,0.00030134,7]
[311640220,1705277443640,-1941.28804665,0.00030134,4]
[311640222,1705277443653,-593237.66142373,0.00030134,4]
[311640225,1705277443662,-287.71847632,0.00030134,4]
[311640228,1705277443672,-533.7952539,0.00030134,4]
[311640231,1705277443681,-311.74164615,0.00030134,4]
[311640234,1705277443691,-4462.19336513,0.00030134,4]
[311640238,1705277443701,-488.87026293,0.00030135,2]